[Event "48th Continental Open"]
[Site "Sturbridge, MA"]
[Date "2018.08.18"]
[Round "6.7"]
[White "Otchiyev, Arslan"]
[Black "Kavi, Nithin"]
[Result "1-0"]
[ECO "B91"]
[WhiteElo "2333"]
[BlackElo "1995"]
[PlyCount "113"]
[EventDate "2018.08.??"]
[EventType "swiss"]
[EventRounds "9"]
[EventCountry "USA"]
[TimeControl "6000+10"]
[WhiteClock "1:39:11"]
[BlackClock "0:00:13"]

1. e4 {[%emt 0:00:10]} c5 {[%emt 0:00:27]} 2. Nf3 {[%emt 0:00:11]} d6 {[%emt 0:
00:12]} 3. d4 {[%emt 0:00:11]} cxd4 {[%emt 0:00:22]} 4. Nxd4 {[%emt 0:00:11]}
Nf6 {[%emt 0:00:17]} 5. Nc3 {[%emt 0:00:11]} a6 {[%emt 0:00:17]} 6. g3 {
[%emt 0:00:11]} e5 {[%emt 0:00:19]} 7. Nde2 {[%emt 0:00:11]} Be7 {[%emt 0:01:
06]} 8. Bg2 {[%emt 0:00:10]} b5 {[%emt 0:03:21]} 9. a4 {[%emt 0:00:10]} b4 {
[%emt 0:00:27]} 10. Nd5 {[%emt 0:00:10]} Nxd5 {[%emt 0:00:30]} 11. Qxd5 {
[%emt 0:00:11]} Ra7 {[%emt 0:00:19]} 12. Be3 {[%emt 0:00:11]} Be6 {[%emt 0:01:
30]} 13. Qd3 {[%emt 0:00:11]} Rb7 {[%emt 0:03:40]} 14. a5 {[%emt 0:00:10]} O-O
{[%emt 0:05:28]} 15. O-O {[%emt 0:00:11]} Qc8 {[%emt 0:12:19]} 16. b3 {[%emt 0:
00:11]} Rc7 {[%emt 0:02:00]} 17. Rfc1 {[%emt 0:00:11]} Nd7 {[%emt 0:03:12]} 18.
Qd2 {[%emt 0:00:11]} Nf6 {[%emt 0:09:51]} 19. Bb6 {[%emt 0:00:11]} Rd7 {
[%emt 0:18:21]} 20. c4 {[%emt 0:00:12]} bxc3 {[%emt 0:04:30]} 21. Nxc3 {
[%emt 0:00:11]} Qb7 {[%emt 0:01:19]} 22. Nd5 {[%emt 0:00:11]} Bd8 {[%emt 0:11:
19]} 23. Bxd8 {[%emt 0:00:10]} Rdxd8 {[%emt 0:12:47]} 24. Nxf6+ {[%emt 0:00:11]
} gxf6 {[%emt 0:00:10]} 25. Qh6 {[%emt 0:00:11]} Qe7 {[%emt 0:02:58]} 26. Rc6 {
[%emt 0:00:11]} Bxb3 {[%emt 0:07:06]} 27. Rxa6 {[%emt 0:00:12]} Ra8 {[%emt 0:
00:00]} 28. Rc6 {[%emt 0:00:11]} Be6 {[%emt 0:00:00]} 29. Rc3 {[%emt 0:00:10]}
Rfc8 {[%emt 0:00:00]} 30. Rca3 {[%emt 0:00:11]} Ra6 {[%emt 0:00:39]} 31. Bf1 {
[%emt 0:00:11]} Bc4 {[%emt 0:00:00]} 32. Rc3 {[%emt 0:00:10]} Rac6 {[%emt 0:00:
00]} 33. Bxc4 {[%emt 0:00:11]} Rxc4 {[%emt 0:00:00]} 34. Rxc4 {[%emt 0:00:10]}
Rxc4 {[%emt 0:00:00]} 35. a6 {[%emt 0:00:10]} Rc8 {[%emt 0:00:00]} 36. Qe3 {
[%emt 0:00:11]} Qc7 {[%emt 0:00:00]} 37. h4 {[%emt 0:00:11]} Ra8 {[%emt 0:00:
00]} 38. h5 {[%emt 0:00:11]} Qc8 {[%emt 0:00:00]} 39. Qd3 {[%emt 0:00:10]} Qe6
{[%emt 0:00:00]} 40. Qb5 {[%emt 0:00:10]} Qc8 {[%emt 0:01:49]} 41. Qb6 {
[%emt 0:00:10]} Qc5 {[%emt 0:00:00]} 42. Qb7 {[%emt 0:00:10]} Qc8 {[%emt 0:00:
00]} 43. Qxc8+ {[%emt 0:00:10]} Rxc8 {[%emt 0:00:00]} 44. a7 {[%emt 0:00:10]}
Ra8 {[%emt 0:00:00]} 45. Kf1 {[%emt 0:00:11]} Kf8 {[%emt 0:00:05]} 46. Ke2 {
[%emt 0:00:11]} Ke7 {[%emt 0:00:34]} 47. Kd3 {[%emt 0:00:10]} Kd7 {[%emt 0:00:
43]} 48. Kc4 {[%emt 0:00:10]} Kc6 {[%emt 0:00:00]} 49. g4 {[%emt 0:00:10]} Kb7
{[%emt 0:00:00]} 50. Kd5 {[%emt 0:00:10]} Kc7 {[%emt 0:00:00]} 51. h6 {[%emt 0:
00:10]} Kd7 {[%emt 0:00:00]} 52. Ra5 {[%emt 0:00:11]} Kc7 {[%emt 0:00:00]} 53.
f3 {[%emt 0:00:10]} Kb6 {[%emt 0:00:00]} 54. Ra3 {[%emt 0:00:13]} Kc7 {[%emt 0:
00:00]} 55. Ra6 {[%emt 0:00:21]} Kb7 {[%emt 0:00:14]} 56. Rxd6 {[%emt 0:00:11]}
Kxa7 {[%emt 0:01:06]} 57. Rxf6 {[%emt 0:00:11]} 1-0

[Event "48th Continental Open"]
[Site "Sturbridge, MA"]
[Date "2018.08.18"]
[Round "6.8"]
[White "Poliannikov, Danila"]
[Black "Kumar, Aravind"]
[Result "0-1"]
[ECO "C03"]
[WhiteElo "1994"]
[BlackElo "2169"]
[PlyCount "46"]
[EventDate "2018.08.??"]
[EventType "swiss"]
[EventRounds "9"]
[EventCountry "USA"]
[TimeControl "6000+10"]
[WhiteClock "0:15:46"]
[BlackClock "0:04:28"]

1. e4 {[%emt 0:00:10]} e6 2. d4 {[%emt 0:01:13]} d5 {[%emt 0:00:31]} 3. Nd2 {
[%emt 0:00:10]} Be7 {[%emt 0:00:11]} 4. Ngf3 {[%emt 0:01:00]} Nf6 {[%emt 0:00:
48]} 5. Bd3 {[%emt 0:00:10]} c5 {[%emt 0:01:36]} 6. exd5 {[%emt 0:00:10]} Qxd5
{[%emt 0:00:11]} 7. dxc5 {[%emt 0:00:59]} Nbd7 {[%emt 0:04:00]} 8. Bc4 {
[%emt 0:07:56]} Qxc5 {[%emt 0:02:26]} 9. O-O {[%emt 0:00:40]} O-O {[%emt 0:10:
02]} 10. Qe2 {[%emt 0:04:59]} a6 {[%emt 0:21:31]} 11. Nb3 {[%emt 0:05:48]} Qc7
{[%emt 0:04:16]} 12. Re1 {[%emt 0:04:50]} h6 {[%emt 0:13:20]} 13. Nbd4 {
[%emt 0:23:26]} b5 {[%emt 0:09:14]} 14. Bb3 {[%emt 0:00:53]} Re8 {[%emt 0:10:
00]} 15. a4 {[%emt 0:24:08]} b4 {[%emt 0:10:39]} 16. Bd2 {[%emt 0:01:04]} Bb7 {
[%emt 0:03:54]} 17. Rad1 {[%emt 0:05:03]} Ne4 {[%emt 0:02:56]} 18. Be3 {
[%emt 0:00:12]} Ndc5 {[%emt 0:00:11]} 19. Nd2 {[%emt 0:02:05]} Nxb3 {[%emt 0:
02:11]} 20. N2xb3 {[%emt 0:01:38]} Bd5 {[%emt 0:05:14]} 21. Nf3 {[%emt 0:00:10]
} Bc4 {[%emt 0:00:00]} 22. Rd3 {[%emt 0:01:10]} Nf6 {[%emt 0:00:00]} 23. Nbd4 {
[%emt 0:00:10]} e5 {[%emt 0:00:00]} 0-1

[Event "48th Continental Open"]
[Site "Sturbridge, MA"]
[Date "2018.08.18"]
[Round "6.9"]
[White "Genger, Eitan"]
[Black "Shanmugasundaram, Coimbatore"]
[Result "1/2-1/2"]
[ECO "A04"]
[WhiteElo "1903"]
[BlackElo "2147"]
[PlyCount "53"]
[EventDate "2018.08.??"]
[EventType "swiss"]
[EventRounds "9"]
[EventCountry "USA"]
[TimeControl "6000+10"]
[WhiteClock "0:40:10"]
[BlackClock "0:32:10"]

1. Nf3 {[%emt 0:00:10]} c5 {[%emt 0:00:32]} 2. c4 {[%emt 0:00:14]} Nc6 {
[%emt 0:00:30]} 3. Nc3 {[%emt 0:00:44]} g6 {[%emt 0:00:56]} 4. d4 {[%emt 0:00:
53]} cxd4 {[%emt 0:00:32]} 5. Nxd4 {[%emt 0:00:11]} Bg7 {[%emt 0:00:11]} 6. Nc2
{[%emt 0:00:57]} Nf6 {[%emt 0:00:51]} 7. g3 {[%emt 0:00:30]} O-O {[%emt 0:00:
59]} 8. Bg2 {[%emt 0:00:17]} d6 {[%emt 0:00:44]} 9. O-O {[%emt 0:00:29]} a6 {
[%emt 0:04:21]} 10. b3 {[%emt 0:02:37]} Rb8 {[%emt 0:03:49]} 11. Bb2 {[%emt 0:
01:12]} Bd7 {[%emt 0:00:20]} 12. Nd5 {[%emt 0:05:57]} Nxd5 {[%emt 0:02:17]} 13.
Bxg7 {[%emt 0:00:11]} Ne3 {[%emt 0:00:49]} 14. Nxe3 {[%emt 0:00:51]} Kxg7 {
[%emt 0:00:11]} 15. Qd2 {[%emt 0:03:28]} Kg8 {[%emt 0:04:00]} 16. Nd5 {[%emt 0:
02:43]} b5 {[%emt 0:02:03]} 17. cxb5 {[%emt 0:04:56]} axb5 {[%emt 0:04:52]} 18.
Rfc1 {[%emt 0:01:25]} e6 {[%emt 0:11:49]} 19. Nb4 {[%emt 0:04:41]} Nxb4 {
[%emt 0:01:19]} 20. Qxb4 {[%emt 0:00:10]} d5 {[%emt 0:01:52]} 21. e4 {[%emt 0:
03:34]} dxe4 {[%emt 0:01:32]} 22. Bxe4 {[%emt 0:00:11]} Qf6 {[%emt 0:02:30]}
23. Qc3 {[%emt 0:07:13]} e5 {[%emt 0:04:03]} 24. Qc7 {[%emt 0:02:12]} Bh3 {
[%emt 0:10:41]} 25. Rc5 {[%emt 0:02:02]} Rfe8 {[%emt 0:01:15]} 26. b4 {[%emt 0:
05:57]} Kg7 {[%emt 0:09:22]} 27. Qc6 {[%emt 0:10:35]} 1/2-1/2

[Event "48th Continental Open"]
[Site "Sturbridge, MA"]
[Date "2018.08.18"]
[Round "6.11"]
[White "Tanenbaum, Zachary"]
[Black "Luo, Terry"]
[Result "1/2-1/2"]
[ECO "C44"]
[WhiteElo "2133"]
[BlackElo "1793"]
[PlyCount "83"]
[EventDate "2018.08.??"]
[EventType "swiss"]
[EventRounds "9"]
[EventCountry "USA"]
[TimeControl "6000+10"]
[WhiteClock "0:05:11"]
[BlackClock "0:31:28"]

1. e4 {[%emt 0:00:10]} e5 {[%emt 0:00:23]} 2. Nf3 {[%emt 0:00:15]} Nc6 {
[%emt 0:00:13]} 3. d4 {[%emt 0:00:28]} exd4 {[%emt 0:00:16]} 4. Bc4 {[%emt 0:
02:45]} Nf6 {[%emt 0:01:57]} 5. e5 {[%emt 0:02:34]} d5 {[%emt 0:05:12]} 6. Bb5
{[%emt 0:00:24]} Nd7 {[%emt 0:02:47]} 7. O-O {[%emt 0:07:11]} Be7 {[%emt 0:00:
57]} 8. Bxc6 {[%emt 0:30:14]} bxc6 {[%emt 0:00:15]} 9. Nxd4 {[%emt 0:04:07]}
Bb7 {[%emt 0:03:40]} 10. Re1 {[%emt 0:12:19]} O-O {[%emt 0:02:20]} 11. Qg4 {
[%emt 0:03:49]} Re8 {[%emt 0:10:50]} 12. e6 {[%emt 0:14:30]} Nf8 {[%emt 0:00:
45]} 13. Nf5 {[%emt 0:02:36]} Ng6 {[%emt 0:03:05]} 14. exf7+ {[%emt 0:00:37]}
Kxf7 {[%emt 0:00:10]} 15. Nxe7 {[%emt 0:03:45]} Rxe7 {[%emt 0:00:19]} 16. Rxe7+
{[%emt 0:02:28]} Qxe7 {[%emt 0:00:21]} 17. Be3 {[%emt 0:00:50]} c5 {[%emt 0:06:
07]} 18. Nd2 {[%emt 0:01:13]} d4 {[%emt 0:02:02]} 19. Bg5 {[%emt 0:01:10]} Qe6
{[%emt 0:03:24]} 20. Qg3 {[%emt 0:05:30]} Qd6 {[%emt 0:00:46]} 21. Qxd6 {
[%emt 0:01:38]} cxd6 {[%emt 0:00:10]} 22. Nc4 {[%emt 0:00:17]} Ke6 {[%emt 0:01:
15]} 23. Re1+ {[%emt 0:00:19]} Kd5 {[%emt 0:00:55]} 24. b3 {[%emt 0:00:26]} Ba6
{[%emt 0:01:31]} 25. Nb2 {[%emt 0:00:47]} Rb8 {[%emt 0:01:29]} 26. f3 {[%emt 0:
00:45]} c4 {[%emt 0:01:05]} 27. Rd1 {[%emt 0:00:38]} c3 {[%emt 0:02:26]} 28.
Na4 {[%emt 0:00:49]} Rc8 {[%emt 0:01:40]} 29. Be3 {[%emt 0:00:41]} d3 {[%emt 0:
00:20]} 30. cxd3 {[%emt 0:00:40]} c2 {[%emt 0:01:16]} 31. Rc1 {[%emt 0:00:20]}
Ne5 {[%emt 0:00:34]} 32. Nb2 {[%emt 0:00:37]} Nxd3 {[%emt 0:00:27]} 33. Nxd3 {
[%emt 0:00:12]} Bxd3 {[%emt 0:00:11]} 34. Kf2 {[%emt 0:00:26]} a5 {[%emt 0:00:
59]} 35. Ke1 {[%emt 0:00:15]} Bg6 {[%emt 0:00:48]} 36. Bb6 {[%emt 0:00:00]} Ra8
{[%emt 0:00:22]} 37. Kd2 {[%emt 0:00:00]} a4 {[%emt 0:00:21]} 38. b4 {[%emt 0:
00:29]} Kc4 {[%emt 0:00:30]} 39. Bc7 {[%emt 0:00:13]} d5 {[%emt 0:00:35]} 40.
Be5 {[%emt 0:00:04]} Kxb4 {[%emt 0:06:23]} 41. Bxg7 {[%emt 0:00:11]} Kc4 {
[%emt 0:06:26]} 42. Re1 {[%emt 0:00:00]} 1/2-1/2

[Event "48th Continental Open"]
[Site "Sturbridge, MA"]
[Date "2018.08.18"]
[Round "6.13"]
[White "Barash, Anton"]
[Black "Torres, Yelfry"]
[Result "1-0"]
[ECO "B56"]
[WhiteElo "1972"]
[BlackElo "2120"]
[PlyCount "57"]
[EventDate "2018.08.??"]
[EventType "swiss"]
[EventRounds "9"]
[EventCountry "USA"]
[TimeControl "6000+10"]
[WhiteClock "0:31:08"]
[BlackClock "0:20:16"]

1. e4 {[%emt 0:00:10]} c5 2. Nf3 {[%emt 0:00:14]} d6 {[%emt 0:00:38]} 3. d4 {
[%emt 0:00:13]} cxd4 {[%emt 0:00:17]} 4. Nxd4 {[%emt 0:00:10]} Nf6 {[%emt 0:00:
14]} 5. Nc3 {[%emt 0:00:13]} Nc6 {[%emt 0:00:25]} 6. Be3 {[%emt 0:02:50]} e5 {
[%emt 0:01:48]} 7. Nf3 {[%emt 0:05:22]} Be7 {[%emt 0:01:53]} 8. Bc4 {[%emt 0:
06:09]} h6 {[%emt 0:10:36]} 9. h3 {[%emt 0:02:47]} a6 {[%emt 0:08:27]} 10. Qd2
{[%emt 0:03:46]} b5 {[%emt 0:00:12]} 11. Bd5 {[%emt 0:00:11]} Bb7 {[%emt 0:13:
40]} 12. O-O {[%emt 0:03:41]} b4 {[%emt 0:06:33]} 13. Na4 {[%emt 0:05:38]} O-O
{[%emt 0:02:34]} 14. a3 {[%emt 0:14:53]} a5 {[%emt 0:02:53]} 15. axb4 {[%emt 0:
01:37]} Nxd5 {[%emt 0:02:36]} 16. exd5 {[%emt 0:05:40]} Nxb4 {[%emt 0:00:21]}
17. Nb6 {[%emt 0:00:32]} Ra6 {[%emt 0:10:48]} 18. c3 {[%emt 0:03:41]} e4 {
[%emt 0:01:04]} 19. cxb4 {[%emt 0:01:21]} axb4 {[%emt 0:05:09]} 20. Rxa6 {
[%emt 0:03:13]} exf3 {[%emt 0:01:21]} 21. Ra7 {[%emt 0:02:13]} fxg2 {[%emt 0:
01:06]} 22. Rc1 {[%emt 0:01:25]} Bf6 {[%emt 0:03:07]} 23. Rxb7 {[%emt 0:00:49]}
Be5 {[%emt 0:01:11]} 24. Bf4 {[%emt 0:02:12]} Qh4 {[%emt 0:01:58]} 25. Bxe5 {
[%emt 0:00:21]} dxe5 {[%emt 0:02:05]} 26. Qe3 {[%emt 0:00:17]} Kh7 {[%emt 0:01:
08]} 27. Rcc7 {[%emt 0:03:09]} Qh5 {[%emt 0:01:10]} 28. Qe4+ {[%emt 0:00:32]}
Kg8 {[%emt 0:01:20]} 29. Qg4 {[%emt 0:00:23]} 1-0

[Event "48th Continental Open"]
[Site "Sturbridge, MA"]
[Date "2018.08.18"]
[Round "6.15"]
[White "Taylor, Steven"]
[Black "Bader, Jeremy"]
[Result "0-1"]
[ECO "E98"]
[WhiteElo "2081"]
[BlackElo "1845"]
[PlyCount "56"]
[EventDate "2018.08.??"]
[EventType "swiss"]
[EventRounds "9"]
[EventCountry "USA"]
[TimeControl "6000+10"]
[WhiteClock "0:01:20"]
[BlackClock "0:43:10"]

1. Nf3 {[%emt 0:00:10]} Nf6 {[%emt 0:00:29]} 2. c4 {[%emt 0:00:18]} g6 {
[%emt 0:00:18]} 3. Nc3 {[%emt 0:00:17]} Bg7 {[%emt 0:00:21]} 4. e4 {[%emt 0:00:
18]} d6 {[%emt 0:00:21]} 5. d4 {[%emt 0:00:18]} O-O {[%emt 0:00:23]} 6. Be2 {
[%emt 0:00:14]} e5 {[%emt 0:00:20]} 7. O-O {[%emt 0:00:20]} Nc6 {[%emt 0:00:25]
} 8. d5 {[%emt 0:00:18]} Ne7 {[%emt 0:00:18]} 9. Ne1 {[%emt 0:01:45]} Nd7 {
[%emt 0:00:39]} 10. Be3 {[%emt 0:02:01]} f5 {[%emt 0:00:55]} 11. f3 {[%emt 0:
00:13]} f4 {[%emt 0:02:03]} 12. Bf2 {[%emt 0:00:15]} Nf6 {[%emt 0:00:18]} 13.
c5 {[%emt 0:00:30]} g5 {[%emt 0:02:40]} 14. cxd6 {[%emt 0:00:40]} cxd6 {
[%emt 0:00:15]} 15. Rc1 {[%emt 0:03:41]} Ng6 {[%emt 0:01:38]} 16. Nb5 {[%emt 0:
01:52]} Rf7 {[%emt 0:01:52]} 17. Qc2 {[%emt 0:09:50]} Ne8 {[%emt 0:01:27]} 18.
Nd3 {[%emt 0:12:54]} Bf8 {[%emt 0:01:02]} 19. a4 {[%emt 0:02:54]} Rg7 {[%emt 0:
01:27]} 20. b4 {[%emt 0:15:52]} h5 {[%emt 0:00:45]} 21. Nxa7 {[%emt 0:00:51]}
Bd7 {[%emt 0:02:35]} 22. Nc6 {[%emt 0:12:32]} Qf6 {[%emt 0:02:19]} 23. Rfd1 {
[%emt 0:23:08]} g4 {[%emt 0:01:28]} 24. Kf1 {[%emt 0:01:21]} Nh4 {[%emt 0:03:
25]} 25. b5 {[%emt 0:04:59]} Nxg2 {[%emt 0:09:34]} 26. Qb3 {[%emt 0:02:56]} g3
{[%emt 0:15:51]} 27. hxg3 {[%emt 0:01:46]} fxg3 {[%emt 0:00:57]} 28. Kxg2 {
[%emt 0:01:07]} Qh4 {[%emt 0:07:35]} 0-1

[Event "48th Continental Open"]
[Site "Sturbridge, MA"]
[Date "2018.08.18"]
[Round "6.16"]
[White "Falcao, Wesley"]
[Black "Belous, Nicholas"]
[Result "1-0"]
[ECO "C11"]
[WhiteElo "2148"]
[BlackElo "1852"]
[PlyCount "113"]
[EventDate "2018.08.??"]
[EventType "swiss"]
[EventRounds "9"]
[EventCountry "USA"]
[TimeControl "6000+10"]
[WhiteClock "0:02:17"]
[BlackClock "0:02:24"]

1. e4 {[%emt 0:00:10]} e6 {[%emt 0:00:33]} 2. d4 {[%emt 0:00:16]} d5 {[%emt 0:
00:13]} 3. Nc3 {[%emt 0:00:17]} Nf6 {[%emt 0:00:22]} 4. Bg5 {[%emt 0:04:45]}
dxe4 {[%emt 0:00:30]} 5. Nxe4 {[%emt 0:00:18]} Be7 {[%emt 0:00:11]} 6. Bxf6 {
[%emt 0:00:52]} Bxf6 {[%emt 0:00:13]} 7. Nf3 {[%emt 0:00:48]} O-O {[%emt 0:02:
32]} 8. Bd3 {[%emt 0:04:12]} Nd7 {[%emt 0:08:12]} 9. O-O {[%emt 0:05:53]} Re8 {
[%emt 0:01:40]} 10. c3 {[%emt 0:04:27]} Nf8 {[%emt 0:02:08]} 11. Ne5 {[%emt 0:
04:33]} Bxe5 {[%emt 0:09:42]} 12. dxe5 {[%emt 0:00:16]} b6 {[%emt 0:01:38]} 13.
Qg4 {[%emt 0:13:23]} Ng6 {[%emt 0:02:18]} 14. Rad1 {[%emt 0:00:40]} Qh4 {
[%emt 0:03:05]} 15. Qxh4 {[%emt 0:04:28]} Nxh4 {[%emt 0:00:57]} 16. Bb5 {
[%emt 0:00:33]} Rf8 {[%emt 0:00:21]} 17. Bc6 {[%emt 0:01:33]} Rb8 {[%emt 0:00:
26]} 18. f4 {[%emt 0:09:15]} Ng6 {[%emt 0:03:23]} 19. g3 {[%emt 0:08:29]} Ne7 {
[%emt 0:01:31]} 20. Bb5 {[%emt 0:01:07]} a6 {[%emt 0:04:00]} 21. Ba4 {[%emt 0:
04:36]} Bb7 {[%emt 0:02:15]} 22. Bc2 {[%emt 0:01:47]} Rbd8 {[%emt 0:05:27]} 23.
Ng5 {[%emt 0:00:47]} Ng6 {[%emt 0:04:27]} 24. h4 {[%emt 0:01:16]} Bd5 {[%emt 0:
07:32]} 25. h5 {[%emt 0:05:21]} h6 {[%emt 0:02:46]} 26. Nxf7 {[%emt 0:01:40]}
Rxf7 {[%emt 0:02:42]} 27. hxg6 {[%emt 0:01:56]} Rfd7 {[%emt 0:01:54]} 28. a3 {
[%emt 0:04:06]} Bc4 {[%emt 0:14:03]} 29. Rxd7 {[%emt 0:00:58]} Rxd7 {[%emt 0:
00:11]} 30. Rd1 {[%emt 0:00:15]} Rxd1+ {[%emt 0:00:49]} 31. Bxd1 {[%emt 0:00:
11]} Bd3 {[%emt 0:00:33]} 32. Bg4 {[%emt 0:00:32]} Bc4 {[%emt 0:01:35]} 33. Kf2
{[%emt 0:01:14]} a5 {[%emt 0:00:11]} 34. Ke3 {[%emt 0:03:54]} Kf8 {[%emt 0:00:
31]} 35. Kd4 {[%emt 0:04:06]} Bb3 {[%emt 0:01:37]} 36. c4 {[%emt 0:02:18]} Ke7
{[%emt 0:00:24]} 37. Kc3 {[%emt 0:00:35]} Ba4 {[%emt 0:00:40]} 38. c5 {[%emt 0:
02:01]} Bc6 {[%emt 0:03:46]} 39. cxb6 {[%emt 0:02:08]} cxb6 {[%emt 0:00:14]}
40. Kc4 {[%emt 0:00:37]} Kd7 {[%emt 0:02:44]} 41. Be2 {[%emt 0:00:00]} Kc7 {
[%emt 0:05:25]} 42. g4 {[%emt 0:00:00]} Kd7 {[%emt 0:01:03]} 43. Kd4 {[%emt 0:
00:00]} Ke7 {[%emt 0:01:30]} 44. f5 {[%emt 0:00:00]} Be8 {[%emt 0:01:09]} 45.
Bc4 {[%emt 0:00:00]} exf5 {[%emt 0:00:00]} 46. gxf5 {[%emt 0:00:00]} h5 {
[%emt 0:00:00]} 47. Ke3 {[%emt 0:00:00]} h4 {[%emt 0:00:00]} 48. Kf4 {[%emt 0:
00:00]} h3 {[%emt 0:00:00]} 49. Kg3 {[%emt 0:00:00]} Bd7 {[%emt 0:00:00]} 50.
Bd3 {[%emt 0:00:00]} Bc6 {[%emt 0:00:00]} 51. Kxh3 {[%emt 0:00:00]} Bd5 {
[%emt 0:00:00]} 52. Kg3 {[%emt 0:00:00]} Bb3 {[%emt 0:00:00]} 53. Kf4 {[%emt 0:
00:00]} Bd5 {[%emt 0:00:00]} 54. Ke3 {[%emt 0:00:00]} Bc6 {[%emt 0:00:00]} 55.
Bc4 {[%emt 0:00:00]} Bd7 {[%emt 0:00:00]} 56. f6+ {[%emt 0:00:08]} Kf8 {
[%emt 0:00:00]} 57. e6 {[%emt 0:00:32]} 1-0

[Event "48th Continental Open"]
[Site "Sturbridge, MA"]
[Date "2018.08.18"]
[Round "6.17"]
[White "Li, Jerry"]
[Black "Riddell, John"]
[Result "1/2-1/2"]
[ECO "B42"]
[WhiteElo "1943"]
[BlackElo "2103"]
[PlyCount "57"]
[EventDate "2018.08.??"]
[EventType "swiss"]
[EventRounds "9"]
[EventCountry "USA"]
[TimeControl "6000+10"]
[WhiteClock "0:20:21"]
[BlackClock "0:10:01"]

1. e4 {[%emt 0:00:10]} c5 2. Nf3 {[%emt 0:00:14]} e6 {[%emt 0:00:32]} 3. d4 {
[%emt 0:00:11]} cxd4 {[%emt 0:00:14]} 4. Nxd4 {[%emt 0:00:11]} a6 {[%emt 0:01:
02]} 5. Bd3 {[%emt 0:00:11]} d5 {[%emt 0:00:11]} 6. O-O {[%emt 0:11:49]} dxe4 {
[%emt 0:10:05]} 7. Bxe4 {[%emt 0:08:43]} Nf6 {[%emt 0:01:19]} 8. Bf3 {[%emt 0:
01:08]} Be7 {[%emt 0:13:43]} 9. Bf4 {[%emt 0:02:22]} O-O {[%emt 0:04:46]} 10.
c3 {[%emt 0:02:45]} Nbd7 {[%emt 0:01:16]} 11. Bg3 {[%emt 0:01:48]} Re8 {
[%emt 0:02:30]} 12. Nd2 {[%emt 0:04:39]} Bf8 {[%emt 0:02:35]} 13. Ne4 {[%emt 0:
04:16]} Nxe4 {[%emt 0:05:54]} 14. Bxe4 {[%emt 0:00:12]} Nf6 {[%emt 0:00:28]}
15. Bf3 {[%emt 0:01:36]} e5 {[%emt 0:04:08]} 16. Nb3 {[%emt 0:01:36]} Qb6 {
[%emt 0:10:44]} 17. Qc2 {[%emt 0:01:45]} g6 {[%emt 0:02:10]} 18. Rad1 {[%emt 0:
02:50]} Bf5 {[%emt 0:01:32]} 19. Qc1 {[%emt 0:00:13]} Ne4 {[%emt 0:17:34]} 20.
Bxe4 {[%emt 0:16:41]} Bxe4 {[%emt 0:00:11]} 21. Rfe1 {[%emt 0:00:23]} f5 {
[%emt 0:01:47]} 22. Kh1 {[%emt 0:04:59]} Bg7 {[%emt 0:01:28]} 23. f3 {[%emt 0:
01:03]} Bc6 {[%emt 0:01:36]} 24. Qc2 {[%emt 0:00:12]} e4 {[%emt 0:00:13]} 25.
f4 {[%emt 0:07:17]} Rad8 {[%emt 0:00:12]} 26. Rxd8 {[%emt 0:01:56]} Rxd8 {
[%emt 0:00:11]} 27. Bf2 {[%emt 0:01:15]} Qc7 {[%emt 0:00:41]} 28. Be3 {[%emt 0:
02:55]} Ba4 {[%emt 0:07:47]} 29. Rd1 {[%emt 0:01:09]} 1/2-1/2

[Event "48th Continental Open"]
[Site "Sturbridge, MA"]
[Date "2018.08.18"]
[Round "6.19"]
[White "Procyk, Marijan"]
[Black "Wu, Brandon"]
[Result "0-1"]
[ECO "D87"]
[WhiteElo "1940"]
[BlackElo "1980"]
[PlyCount "59"]
[EventDate "2018.08.??"]
[EventType "swiss"]
[EventRounds "9"]
[EventCountry "USA"]
[TimeControl "6000+10"]
[WhiteClock "1:00:13"]
[BlackClock "0:10:45"]

1. d4 {[%emt 0:00:10]} Nf6 2. c4 {[%emt 0:00:31]} g6 {[%emt 0:00:32]} 3. Nc3 {
[%emt 0:00:21]} d5 {[%emt 0:00:20]} 4. cxd5 {[%emt 0:00:24]} Nxd5 {[%emt 0:00:
11]} 5. e4 {[%emt 0:00:19]} Nxc3 {[%emt 0:00:15]} 6. bxc3 {[%emt 0:00:16]} Bg7
{[%emt 0:00:19]} 7. Bc4 {[%emt 0:00:47]} c5 {[%emt 0:00:18]} 8. Ne2 {[%emt 0:
00:20]} O-O {[%emt 0:00:46]} 9. Be3 {[%emt 0:00:34]} Nc6 {[%emt 0:00:18]} 10.
O-O {[%emt 0:03:48]} Qc7 {[%emt 0:00:27]} 11. Rc1 {[%emt 0:01:37]} b6 {[%emt 0:
00:35]} 12. dxc5 {[%emt 0:01:14]} bxc5 {[%emt 0:03:44]} 13. Bxc5 {[%emt 0:02:
03]} Rd8 {[%emt 0:06:09]} 14. Qa4 {[%emt 0:02:30]} Ne5 {[%emt 0:15:15]} 15. Bd5
{[%emt 0:00:32]} Rxd5 {[%emt 0:01:17]} 16. exd5 {[%emt 0:05:00]} Qxc5 {[%emt 0:
00:56]} 17. Qe8+ {[%emt 0:02:32]} Bf8 {[%emt 0:00:18]} 18. c4 {[%emt 0:00:20]}
Bb7 {[%emt 0:13:03]} 19. Qa4 {[%emt 0:00:28]} Rc8 {[%emt 0:02:14]} 20. Rc3 {
[%emt 0:00:11]} Nxc4 {[%emt 0:04:39]} 21. Rfc1 {[%emt 0:00:36]} Qxd5 {[%emt 0:
02:44]} 22. Nf4 {[%emt 0:00:19]} Qd2 {[%emt 0:11:18]} 23. g3 {[%emt 0:03:56]}
Nb6 {[%emt 0:14:50]} 24. Qc2 {[%emt 0:00:40]} Qd4 {[%emt 0:04:24]} 25. Rxc8 {
[%emt 0:00:46]} Nxc8 {[%emt 0:00:48]} 26. Rd1 {[%emt 0:00:38]} Qf6 {[%emt 0:04:
30]} 27. Qb3 {[%emt 0:03:35]} Qc6 {[%emt 0:01:35]} 28. Kf1 {[%emt 0:07:51]} e5
{[%emt 0:01:54]} 29. Nd5 {[%emt 0:00:44]} Nb6 {[%emt 0:00:36]} 30. Nxb6 {
[%emt 0:01:45]} 0-1